bitfinex/quotes_ETHUSD_20250731
["timestamp","ask_amount","ask_price","bid_price","bid_amount"]
[1753962884624,0.24145803,3837.9,3837.8,4.53091274]
[1753962885417,1e-08,3837.9,3837.8,4.53091274]
[1753962888832,1e-08,3837.9,3837.8,4.66131274]
[1753962888998,1e-08,3837.9,3837.8,4.55751274]
[1753962889196,1e-08,3837.9,3837.8,8.57151274]
[1753962890328,1e-08,3837.9,3837.8,4.10161274]
[1753962890535,0.46590001,3837.9,3837.8,2.86605949]
[1753962890828,0.46590001,3837.9,3837.8,6.87905949]
[1753962892429,0.94780001,3837.9,3837.8,0.13]
[1753962892632,7.75742926,3837.9,3837.8,0.13]
[1753962892929,14.28042926,3837.9,3837.8,0.13]
[1753962893426,11.67483767,3837.9,3837.8,0.13]
[1753962894505,11.67483767,3837.9,3837.8,0.131]
[1753962895928,11.67492955,3837.9,3837.8,0.131]
[1753962897308,11.67501952,3837.9,3837.8,0.131]
[1753962898126,14.28061111,3837.9,3837.8,0.131]
[1753962899523,15.68801952,3837.9,3837.8,0.131]
[1753962901941,15.44520001,3837.9,3837.8,0.131]
[1753962903338,18.0507916,3837.9,3837.8,0.131]
[1753962903517,15.44520001,3837.9,3837.8,0.131]
[1753962907355,14.96330001,3837.9,3837.8,0.131]
[1753962907867,14.49740001,3837.9,3837.8,0.5924]
[1753962908518,14.93310001,3837.9,3837.8,0.5924]
[1753962908914,10.92010001,3837.9,3837.8,0.5924]
[1753962909147,10.08910001,3837.9,3837.8,0.5924]
[1753962909352,10.08910001,3837.9,3837.8,0.131]
[1753962910709,10.3320066,3837.9,3837.8,0.131]
[1753962910951,9.7659066,3837.9,3837.8,0.5924]
[1753962911148,6.7659066,3837.9,3837.8,0.5924]
[1753962911450,6.7659066,3837.9,3837.8,3.79149618]
[1753962911823,6.7659066,3837.9,3837.8,4.74639618]
[1753962912149,0.2429066,3837.9,3837.8,4.74639618]
[1753962912510,1e-08,3837.9,3837.8,4.74639618]
[1753962913150,0.2429066,3837.9,3837.8,4.74639618]
[1753962913452,1e-08,3837.9,3837.8,4.74639618]
[1753962914051,1e-08,3837.9,3837.8,4.85019618]
[1753962915653,0.002,3838.3,3838.2,2.60538794]
[1753962915836,0.002,3838.3,3838.2,7.45287384]
[1753962916149,0.002,3838.3,3838.2,7.91427384]
[1753962916314,0.002,3838.3,3838.2,8.67857384]
[1753962916862,0.002,3838.3,3838.2,8.78237384]
[1753962917045,0.002,3838.3,3838.2,8.67857384]
[1753962917232,0.002,3838.3,3838.2,8.78237384]
[1753962918652,0.002,3838.3,3838.2,8.67857384]
[1753962919355,0.002,3838.3,3838.2,7.91427384]
[1753962920632,0.4377,3838.3,3838.2,3.38687384]
[1753962920956,0.4377,3838.3,3838.2,4.2704]
[1753962921118,0.4377,3838.3,3838.2,0.2604]
[1753962921322,0.4377,3838.3,3838.2,4.2704]
[1753962921633,0.4377,3838.3,3838.2,4.14]
[1753962922220,0.4377,3838.3,3838.2,0.13]
[1753962922421,0.896,3838.3,3838.2,4.142]
[1753962922622,0.896,3838.3,3838.2,0.13]
[1753962922927,0.896,3838.3,3838.2,4.141]
[1753962923137,0.4377,3838.3,3838.2,4.141]
[1753962923358,0.4377,3838.3,3838.2,4.14]
[1753962923562,0.002,3838.3,3838.2,7.63382794]
[1753962923871,0.002,3838.3,3838.2,7.86802794]
[1753962924072,0.002,3838.3,3838.2,8.66402794]
[1753962925726,0.002,3838.3,3838.2,8.56022794]
[1753962926064,0.002,3838.3,3838.2,16.11533201]
[1753962926962,0.002,3838.3,3838.2,8.56022794]
[1753962927264,0.002,3838.3,3838.2,8.56122794]
[1753962929527,0.002,3838.3,3838.2,8.55922794]
[1753962932435,0.002,3838.3,3838.2,4.55022794]
[1753962932635,0.002,3838.3,3838.2,8.55822794]
[1753962932883,0.002,3838.3,3838.2,0.2604]
[1753962932884,0.4377,3838.3,3838.2,0.2604]
[1753962933036,0.9341,3838.3,3838.2,4.2674]
[1753962933437,1.17682124,3838.3,3838.2,4.2724]
[1753962933663,0.9341,3838.3,3838.2,6.74738794]
[1753962934235,0.9341,3838.3,3838.2,4.142]
[1753962934604,0.002,3838.3,3838.2,6.87778794]
[1753962934739,0.002,3838.3,3838.2,8.39806743]
[1753962937441,0.002,3838.3,3838.2,7.90286743]
[1753962937637,0.4493,3838.3,3838.2,7.90286743]
[1753962937935,0.4493,3838.3,3838.2,3.89086743]
[1753962938152,0.002,3838.3,3838.2,8.39706743]
[1753962939469,0.4493,3838.3,3838.2,2.86578794]
[1753962939650,0.4493,3838.3,3838.2,6.87778794]
[1753962940069,0.4493,3838.3,3838.2,6.8711988]
[1753962942675,0.002,3838.3,3838.2,7.3563988]
[1753962943260,0.002,3838.3,3838.2,8.1887988]
[1753962943574,0.002,3838.3,3838.2,9.75766999]
[1753962951678,0.4493,3838.3,3838.2,4.41806999]
[1753962951983,0.4493,3838.3,3838.2,6.8531988]
[1753962952685,0.4493,3838.3,3838.2,3.3443988]
[1753962952891,0.4493,3838.3,3838.2,7.3483988]
[1753962953425,0.4493,3838.3,3838.2,6.8531988]
[1753962953571,0.4493,3838.3,3838.2,7.93142546]
[1753962954386,0.4493,3838.3,3838.2,3.92742546]
[1753962954696,0.4493,3838.3,3838.2,6.8521988]
[1753962955763,0.002,3838.3,3838.2,3.3443988]
[1753962955962,0.002,3838.3,3838.2,7.3463988]
[1753962956981,0.4493,3838.3,3838.2,6.8511988]
[1753962957174,0.4493,3838.3,3838.2,2.8491988]
[1753962957358,0.002,3838.3,3838.2,2.8491988]
[1753962957554,0.4493,3838.3,3838.2,6.8501988]
[1753962958659,0.4493,3838.3,3838.2,7.3453988]
[1753962960090,0.002,3838.3,3838.2,7.3453988]
[1753962960397,0.002,3838.3,3838.2,7.3443988]
[1753962961437,0.4493,3838.3,3838.2,7.3443988]
[1753962962131,0.4493,3838.3,3838.2,6.8491988]
[1753962962441,0.9457,3838.3,3838.2,6.8471988]
[1753962962623,1.11809,3838.3,3838.2,0.24381086]
[1753962962831,1.93149,3838.3,3838.2,4.11141086]
[1753962963336,1.93149,3838.3,3838.2,0.11341086]
[1753962964951,0.55,3837.8,3837.7,0.001]
[1753962965112,0.55,3837.8,3835.3,0.7745]
[1753962965113,1.3119,3837.2,3836.2,0.1304]
[1753962965315,0.8226,3836.9,3836.2,0.1304]
[1753962965634,0.8226,3836.0,3835.6,0.1304]
[1753962965845,0.8226,3836.0,3834.4,5.78645148]
[1753962965846,0.1304,3835.7,3835.1,4.1824]
[1753962966027,0.1304,3835.8,3835.2,2.60736878]
[1753962966231,0.4289,3835.6,3835.3,0.1304]
[1753962966434,0.4289,3835.5,3835.3,0.1304]
[1753962966745,0.4289,3835.4,3835.3,0.1304]
[1753962967336,0.4289,3835.4,3835.3,2.73775796]
[1753962967542,0.4289,3835.4,3835.3,6.79075796]
[1753962968310,0.4289,3835.8,3835.4,2.60728998]
[1753962968508,6.526,3835.9,3835.5,2.73759369]
[1753962968712,0.4289,3835.7,3835.5,2.73759369]
[1753962968942,0.4289,3835.7,3835.5,0.1304]
[1753962969150,0.4289,3835.6,3835.5,0.1304]
[1753962969354,0.4289,3835.6,3835.5,0.1404]
[1753962970936,6.9549,3835.9,3835.5,4.6887]
[1753962971137,6.526,3835.9,3835.6,2.61714628]
[1753962971342,0.4289,3835.8,3835.6,2.61714628]
[1753962971875,0.4289,3835.8,3835.7,0.1304]
[1753962973484,6.526,3835.9,3835.7,0.1304]
[1753962973634,6.526,3835.9,3835.7,3.23577816]
[1753962973964,6.526,3835.9,3835.8,0.4983]
[1753962974158,6.526,3835.9,3835.8,3.10531809]
[1753962974360,6.526,3835.9,3835.7,0.1304]
[1753962974531,6.9549,3835.9,3835.7,0.1304]
[1753962974863,6.9549,3835.9,3835.8,2.60701809]
[1753962975220,6.9549,3835.9,3835.8,2.61701809]
[1753962977564,6.526,3835.9,3835.8,3.11531809]
[1753962977768,6.525,3836.4,3836.3,2.6066783]
[1753962977952,0.4289,3836.8,3836.5,2.60654242]
[1753962978263,6.525,3836.7,3836.6,0.01]
[1753962978841,7.4208,3836.7,3836.6,0.01]
[1753962981003,6.9539,3836.7,3836.6,0.01]
[1753962981894,6.525,3836.7,3836.6,0.01]
[1753962982191,6.9539,3836.7,3836.6,0.01]
[1753962982895,6.9539,3836.7,3836.6,0.1404]
[1753962984097,6.9539,3836.7,3836.6,2.74687448]
[1753962984579,6.9539,3836.7,3836.6,0.1404]
[1753962984781,6.9539,3836.7,3836.6,0.01]
[1753962985096,7.4208,3836.7,3836.6,0.01]
[1753962985693,6.9539,3836.7,3836.6,0.01]
[1753962986762,6.9539,3836.7,3836.6,2.61647448]
[1753962987300,6.9539,3836.7,3836.6,0.01]
[1753962987504,6.9539,3836.7,3836.6,2.61647448]
[1753962988008,6.9539,3836.7,3836.6,3.11477448]
[1753962988312,6.525,3836.7,3836.6,3.11477448]
[1753962988493,4.1764,3837.0,3836.9,2.60627068]
[1753962988678,4.6053,3837.0,3836.9,2.60627068]
[1753962988981,4.4749,3837.0,3836.9,2.73667068]
[1753962989194,4.4749,3837.0,3836.9,0.1304]
[1753962989395,11.4658,3837.0,3836.6,0.01]
[1753962989707,0.4289,3836.9,3836.6,2.74687361]
[1753962989874,11.0369,3837.0,3836.6,2.74687361]
[1753962990074,0.4289,3836.9,3836.6,2.74687361]
[1753962990275,0.4289,3836.8,3836.7,2.60640654]
[1753962991042,0.67111283,3836.8,3836.7,2.60640654]
[1753962991211,0.67111283,3836.8,3836.6,2.74685911]
[1753962991415,0.24221283,3836.7,3836.6,3.24515911]
[1753962992276,0.4289,3836.7,3836.6,0.1404]
[1753962992478,0.67111283,3836.7,3836.6,0.1404]
[1753962993585,0.67111283,3836.7,3836.6,2.74687448]
[1753962994587,0.24221283,3836.7,3836.6,3.20007448]
[1753962994802,0.4363,3836.9,3836.7,2.60639885]
[1753962994996,0.67860411,3836.8,3836.6,3.2000591]
[1753962995322,0.24230411,3836.7,3836.6,3.2000591]
[1753962996581,0.4363,3836.8,3836.7,2.60640654]
[1753962996832,0.67851063,3836.8,3836.7,2.60640654]
[1753962997042,0.24221063,3836.8,3836.7,2.60640654]
[1753962997190,6.524,3837.0,3836.7,3.99923568]
[1753962997393,0.24219845,3836.9,3836.8,2.60633861]
[1753962997707,0.24219845,3836.9,3836.8,3.18993861]
[1753962997887,0.67849845,3836.9,3836.8,3.18993861]
[1753962998416,0.24217546,3836.9,3836.8,3.18993861]
[1753962998798,6.524,3837.0,3836.8,3.18993861]
[1753962999114,0.67845266,3836.9,3836.8,0.1404]
[1753962999489,0.67845266,3836.9,3836.8,2.74673861]
[1753963000088,6.524,3837.0,3836.9,2.60627068]
[1753963000294,6.76613128,3837.0,3836.9,2.60627068]
[1753963000494,6.76613128,3837.0,3836.9,0.4532]
[1753963000685,7.20243128,3837.0,3836.9,0.4532]
[1753963000882,7.20243128,3837.0,3836.8,2.74671069]
[1753963001123,6.9603,3837.0,3836.8,3.19991069]
[1753963001623,6.9603,3837.0,3836.9,2.60627068]
[1753963003445,6.9603,3837.0,3836.8,3.19991751]
[1753963004151,6.524,3837.0,3836.8,0.5936]
[1753963004442,0.4363,3836.9,3836.8,2.74673861]
[1753963004845,0.4363,3836.9,3836.8,0.1404]
[1753963005154,0.4363,3836.9,3836.8,2.74673861]
[1753963005648,0.4363,3836.9,3836.8,3.19993861]
[1753963007041,6.526,3837.0,3836.9,2.60627068]
[1753963007339,6.9623,3837.0,3836.9,3.05947068]
[1753963008119,6.9623,3837.0,3836.9,0.4532]
[1753963008450,6.526,3837.0,3836.9,3.05947068]
[1753963008837,0.002,3837.0,3836.9,3.60118319]
[1753963010340,0.002,3837.0,3836.9,3.05947068]
[1753963010721,0.002,3837.0,3836.9,3.06947068]
[1753963011218,0.002,3837.0,3836.9,0.01]
[1753963011422,0.4383,3837.0,3836.9,0.01]
[1753963012044,0.4383,3837.0,3836.9,2.61627068]
[1753963012541,0.68050573,3837.0,3836.9,0.01]
[1753963012733,0.68052099,3837.0,3836.9,2.61627068]
[1753963012944,0.4383,3837.0,3836.9,2.61627068]
[1753963015466,0.4383,3837.0,3836.9,3.06947068]
[1753963015758,0.002,3837.0,3836.9,3.06947068]
[1753963017660,0.4383,3837.0,3836.9,3.06947068]
[1753963018680,0.4383,3837.0,3836.9,2.61627068]
[1753963020268,0.4383,3837.0,3836.9,0.01]
[1753963020478,0.6807736,3837.0,3836.9,2.61627068]
[1753963021296,0.6807736,3837.0,3836.9,0.01]
[1753963021499,0.6807736,3837.0,3836.9,2.61627068]
[1753963022015,0.6807736,3837.0,3836.9,3.06947068]
[1753963022660,0.2444736,3837.0,3836.9,3.06947068]
[1753963022884,0.002,3837.0,3836.9,3.06947068]
[1753963024319,0.002,3837.0,3836.9,5.5865266]
[1753963024453,0.002,3837.0,3836.9,5.8057266]
[1753963024649,0.002,3837.0,3836.9,5.5865266]
[1753963026591,0.002,3837.0,3836.9,3.06947068]
[1753963028178,0.4695,3837.0,3836.9,3.06947068]
[1753963028486,0.4695,3837.0,3836.9,6.62927068]
[1753963028797,0.4695,3837.0,3836.9,0.01]
[1753963028957,0.71204376,3837.0,3836.9,4.023]
[1753963030792,0.71204376,3837.0,3836.9,0.01]
[1753963031292,1.19994376,3837.0,3836.9,0.01]
[1753963031461,0.71204376,3837.0,3836.9,0.01]
[1753963034881,0.4695,3837.0,3836.9,3.08697068]
[1753963035065,0.002,3837.0,3836.9,3.08697068]
[1753963036469,0.002,3837.0,3836.9,0.4807]
[1753963036668,0.4695,3837.0,3836.9,0.4807]
[1753963036868,0.4695,3837.0,3836.9,3.08697068]
[1753963037396,0.002,3837.0,3836.9,3.08697068]
[1753963038520,0.002,3837.0,3836.9,7.09397068]
[1753963040508,0.002,3837.0,3836.9,8.15569272]
[1753963044307,0.24255668,3837.3,3836.9,8.15569272]
[1753963044308,0.24255668,3837.3,3837.2,2.60606692]
[1753963044509,0.24255668,3837.3,3837.2,0.008]
[1753963044806,0.73045668,3837.3,3837.2,0.1384]
[1753963045011,1.19795668,3837.3,3837.2,0.1384]
[1753963045311,1.95966561,3837.3,3837.2,0.1384]
[1753963046688,0.24256561,3837.3,3837.2,2.74446692]
[1753963046886,6.525,3837.4,3837.3,2.605999]
[1753963047102,0.24457931,3837.4,3837.3,2.613999]
[1753963047407,0.002,3837.4,3837.3,3.084699]
[1753963047909,0.002,3837.4,3837.3,7.088699]
[1753963048213,0.002,3837.4,3837.3,7.219099]
[1753963048513,0.002,3837.4,3837.3,9.19272018]
[1753963050911,0.2425062,3837.7,3837.5,2.60586319]
[1753963051090,6.522,3838.1,3838.0,2.60552371]
[1753963051290,6.76451577,3838.1,3838.0,3.20662371]
[1753963051599,7.23201577,3838.1,3838.0,3.20662371]
[1753963052172,6.76451577,3838.1,3838.0,3.20662371]
[1753963052384,6.76451577,3838.1,3838.0,4.18804647]
[1753963052979,0.002,3838.3,3838.2,2.60538794]
[1753963053208,0.002,3838.3,3838.2,6.73678794]
[1753963053422,0.002,3838.3,3838.2,7.21478794]
[1753963053927,0.2444305,3838.3,3838.2,7.21478794]
[1753963054227,0.002,3838.3,3838.2,8.78545588]
[1753963055013,0.2444305,3838.3,3838.2,9.59655588]
[1753963055196,0.002,3838.3,3838.2,9.81575588]
[1753963055549,0.002,3838.3,3838.2,9.59655588]
[1753963056357,0.002,3838.5,3838.4,2.60525218]
[1753963056638,0.002,3838.5,3838.4,13.46399249]
[1753963056812,0.002,3838.5,3838.4,9.04304749]
[1753963058035,0.002,3838.5,3838.4,4.46804749]
[1753963058223,0.8893,3838.5,3838.4,4.01]
[1753963058422,8.00689284,3838.5,3838.4,0.004]
[1753963058624,7.19679284,3838.5,3838.4,2.60925218]
[1753963059028,7.19679284,3838.5,3838.4,0.813]
[1753963059029,6.76609284,3838.5,3838.4,0.813]
[1753963059335,6.76609284,3838.5,3838.4,3.21765218]
[1753963059535,6.76609284,3838.5,3838.4,0.6124]
[1753963059718,0.002,3838.5,3838.4,0.1344]
[1753963059921,0.24389464,3838.5,3838.4,0.6124]
[1753963060129,0.24389464,3838.5,3838.4,3.21765218]
[1753963060335,0.24389464,3838.5,3838.4,7.22565218]
[1753963061745,0.002,3838.5,3838.4,8.28965605]
[1753963062348,0.002,3838.5,3838.4,9.10445605]
[1753963063251,0.002,3838.5,3838.4,9.32365605]
[1753963064330,0.002,3838.7,3838.4,9.32365605]
[1753963064331,0.002,3838.7,3838.6,7.50406144]
[1753963064531,0.002,3838.7,3838.6,11.64046144]
[1753963064731,0.002,3838.7,3838.6,13.80083319]
[1753963064935,0.002,3838.7,3838.6,14.79383319]
[1753963066446,1e-08,3838.7,3838.6,15.34383319]
[1753963066826,1e-08,3838.7,3838.6,14.79383319]
[1753963067065,1e-08,3838.7,3838.6,14.57463319]
[1753963068183,0.4566,3839.7,3838.6,14.57463319]
[1753963068184,3.0,3840.5,3839.1,2.60477716]
[1753963068326,3.0,3840.5,3839.1,12.82309988]
[1753963068327,0.4566,3840.1,3839.1,12.82309988]
[1753963068523,0.4307,3839.8,3839.1,12.95349988]
[1753963068832,0.8139,3840.2,3839.1,13.43149988]
[1753963069031,0.8139,3840.2,3839.1,10.82672272]
[1753963069235,0.4307,3839.7,3839.1,10.82672272]
[1753963069469,0.4307,3839.7,3839.1,13.43149988]
[1753963071469,0.8139,3840.2,3839.1,13.43149988]
[1753963071670,0.4307,3839.5,3839.1,13.43149988]
[1753963072368,6.519,3839.9,3839.4,0.7856]
[1753963072531,6.9497,3839.9,3839.8,2.6043023]
[1753963072868,0.4307,3840.2,3840.1,2.60409885]
[1753963073070,0.67263311,3840.2,3840.1,7.06809885]
[1753963073229,0.67263311,3840.2,3840.1,7.19849885]
[1753963074056,0.24193311,3840.2,3840.1,7.67649885]
[1753963074341,6.518,3840.4,3840.3,2.60396323]
[1753963074545,6.75995351,3840.4,3840.3,6.86396323]
[1753963074740,6.75995351,3840.4,3840.3,6.99436323]
[1753963075145,0.24195351,3840.4,3840.3,9.16950962]
[1753963075376,0.002,3840.6,3840.5,2.60382762]
[1753963075580,0.002,3840.6,3840.5,12.09877262]
[1753963075746,0.002,3840.6,3840.5,12.70717262]
[1753963076859,0.002,3840.6,3840.5,13.52347262]
[1753963079289,0.002,3840.6,3840.5,14.99068052]
[1753963080975,0.4327,3840.6,3840.5,7.43522762]
[1753963082161,0.67429117,3840.6,3840.5,7.43522762]
[1753963082885,0.24359117,3840.6,3840.5,7.91322762]
[1753963083077,0.002,3840.6,3840.5,7.91322762]
[1753963084463,0.002,3840.6,3840.5,7.43522762]
[1753963084657,0.002,3840.6,3840.5,7.92432762]
[1753963085087,0.002,3840.6,3840.5,7.43522762]
[1753963085286,0.002,3840.6,3840.5,9.41814121]
[1753963086267,0.4582,3840.6,3840.5,9.41814121]
[1753963087002,0.4582,3840.6,3840.5,7.43522762]
[1753963087997,0.928,3840.6,3840.5,7.43522762]
[1753963088500,0.928,3840.6,3840.5,4.8314]
[1753963089696,0.928,3840.6,3840.5,7.43522762]
[1753963089862,0.4582,3840.6,3840.5,4.701]
[1753963090066,0.4582,3840.6,3840.5,8.26402762]
[1753963090067,0.002,3840.6,3840.5,8.26402762]
[1753963090280,0.002,3840.6,3840.5,8.39442762]
[1753963090798,0.002,3840.6,3840.5,8.26402762]
[1753963091002,0.002,3840.6,3840.5,8.39442762]
[1753963092997,1e-08,3840.6,3840.5,13.84337262]
[1753963093383,1e-08,3840.6,3840.5,14.06257262]
[1753963095023,1e-08,3840.6,3840.5,13.84337262]
[1753963095524,1e-08,3840.6,3840.5,14.06257262]
[1753963096421,1e-08,3840.6,3840.5,14.83657262]
[1753963097526,1e-08,3840.6,3840.5,17.83657262]
[1753963098394,1e-08,3840.6,3840.5,17.61737262]
[1753963102307,1e-08,3840.6,3840.5,17.06737262]
[1753963102697,1e-08,3840.6,3840.5,6.20432762]
[1753963103031,0.45620001,3840.6,3840.5,7.19532762]
[1753963104798,0.45620001,3840.6,3840.5,7.68442762]
[1753963106202,0.45620001,3840.6,3840.5,7.19532762]
[1753963106399,1e-08,3840.6,3840.5,7.68442762]
[1753963107934,0.45620001,3840.6,3840.5,7.68442762]
[1753963109145,0.45620001,3840.6,3840.5,7.19532762]
[1753963110650,1e-08,3840.6,3840.5,7.68442762]
[1753963114016,1e-08,3840.6,3840.5,8.46052762]
[1753963114207,0.002,3841.0,3840.7,2.60369203]
[1753963114541,0.002,3841.0,3840.9,10.50250145]
[1753963114750,0.002,3841.0,3840.9,10.63290145]
[1753963115109,0.002,3841.0,3840.9,11.12220145]
[1753963116142,0.002,3841.0,3840.9,11.92400145]
[1753963118651,0.002,3841.2,3841.1,2.60342089]
[1753963118857,0.002,3841.2,3841.1,8.58560132]
[1753963119153,0.002,3841.2,3841.1,9.20530132]
[1753963119367,0.002,3841.2,3841.1,9.75530132]
[1753963119516,1e-08,3841.2,3841.1,9.75530132]
[1753963119836,201.04878745,3841.6,3841.5,6.40704981]
[1753963120038,142.59987742,3841.6,3841.5,16.46669481]
[1753963120531,135.28407167,3841.6,3841.5,16.46669481]
[1753963120855,135.72587167,3841.6,3841.5,2.73354981]
[1753963121017,137.03177167,3841.6,3841.5,6.72454981]
[1753963122049,137.03177167,3841.6,3841.5,6.72354981]
[1753963123118,137.03177167,3841.6,3841.5,2.73354981]
[1753963123318,137.03177167,3841.6,3841.5,6.72354981]
[1753963123851,135.72587167,3841.6,3841.5,6.72354981]
[1753963125261,135.28407167,3841.6,3841.5,6.72354981]
[1753963125426,135.72587167,3841.6,3841.5,6.72354981]
[1753963125752,135.28407167,3841.6,3841.5,7.21284981]
[1753963126155,135.72587167,3841.6,3841.5,7.21284981]
[1753963126361,135.72587167,3841.6,3841.5,6.72354981]
[1753963131027,135.28407167,3841.6,3841.5,7.21284981]
[1753963131326,135.28407167,3841.6,3841.5,8.31945776]
[1753963131526,135.72587167,3841.6,3841.5,8.31945776]
[1753963132156,135.28407167,3841.6,3841.5,7.83015776]
[1753963132349,135.28407167,3841.6,3841.5,8.31945776]
[1753963133429,135.72587167,3841.6,3841.5,8.31945776]
[1753963133931,135.28407167,3841.6,3841.5,8.31945776]
[1753963136463,135.28407167,3841.6,3841.5,7.83015776]
[1753963136642,135.72587167,3841.6,3841.5,8.31945776]
[1753963136966,135.72587167,3841.6,3841.5,7.83015776]
[1753963138175,135.72587167,3841.6,3841.5,8.32045776]
[1753963139068,135.28407167,3841.6,3841.5,8.32045776]
[1753963139370,135.28407167,3841.6,3841.5,13.97890276]
[1753963139672,135.28407167,3841.6,3841.5,9.07995776]
[1753963140039,71.42309075,3841.6,3841.5,12.49955776]
[1753963140872,71.42309075,3841.6,3841.5,11.94955776]
[1753963141175,71.42309075,3841.6,3841.5,11.19005776]
[1753963142454,71.42309075,3841.6,3841.5,11.74005776]
[1753963143081,71.42309075,3841.6,3841.5,12.49465776]
[1753963143393,3.6846249,3841.6,3841.5,12.49465776]
[1753963143553,3.6846249,3841.6,3841.5,12.71385776]
[1753963144254,0.002,3842.0,3841.9,2.60287878]
[1753963144577,0.002,3842.0,3841.9,12.27171569]
[1753963144874,0.002,3842.0,3841.9,12.75311569]
[1753963145045,0.002,3842.0,3841.9,17.06891569]
[1753963146359,0.002,3842.0,3841.9,17.28811569]
[1753963149641,0.002,3842.0,3841.9,21.53811569]
[1753963150068,0.002,3842.0,3841.9,21.44931569]
[1753963151161,0.002,3842.0,3841.9,17.19931569]
[1753963151541,0.002,3842.0,3841.9,13.21031569]
[1753963151775,0.4667,3842.0,3841.9,7.06417069]
[1753963151975,0.4667,3842.0,3841.9,11.05217069]
[1753963152482,0.002,3842.0,3841.9,11.53357069]
[1753963153468,0.4667,3842.0,3841.9,7.54557069]
[1753963153672,0.4667,3842.0,3841.9,10.50217069]
[1753963154588,0.9533,3842.0,3841.9,10.50217069]
[1753963154770,0.4667,3842.0,3841.9,10.50217069]
[1753963154975,0.4667,3842.0,3841.9,10.98357069]
[1753963155587,0.4667,3842.0,3841.9,15.23357069]
[1753963157854,0.4667,3842.0,3841.9,14.75217069]
[1753963158249,0.4667,3842.0,3841.9,19.65111569]
[1753963160353,0.002,3842.0,3841.9,20.20111569]
[1753963160553,0.002,3842.0,3841.9,20.68251569]
[1753963164478,0.002,3842.1,3841.9,20.68251569]
[1753963164479,1e-08,3842.1,3842.0,6.15281103]
[1753963164682,1e-08,3842.1,3842.0,8.73869469]
[1753963164878,1e-08,3842.1,3842.0,9.22009469]
[1753963167465,1e-08,3842.1,3842.0,13.47009469]
[1753963167882,0.46470001,3842.1,3842.0,16.97569469]
[1753963173129,1e-08,3842.1,3842.0,17.45709469]
[1753963174192,1e-08,3842.1,3842.0,13.20709469]
[1753963176124,0.44500001,3842.1,3842.0,13.20709469]
[1753963180642,1e-08,3842.1,3842.0,13.20709469]
[1753963181525,0.44500001,3842.1,3842.0,13.20709469]
[1753963181923,0.44500001,3842.1,3842.0,12.72569469]
[1753963182624,1.20160001,3842.1,3842.0,12.72569469]
[1753963183142,1.20160001,3842.1,3842.0,12.17569469]
[1753963183552,0.44500001,3842.1,3842.0,12.17569469]
[1753963185224,1.20160001,3842.1,3842.0,12.17569469]
[1753963185623,0.44500001,3842.1,3842.0,12.17569469]
[1753963186614,1.20160001,3842.1,3842.0,12.17569469]
[1753963186813,0.44500001,3842.1,3842.0,12.17569469]
[1753963192731,1.97580001,3842.1,3842.0,9.58981103]
[1753963193551,1.97580001,3842.1,3842.0,9.58781103]
[1753963195140,1.97580001,3842.1,3842.0,5.60281103]
[1753963195475,1.97580001,3842.1,3842.0,9.58781103]
[1753963195656,1.97580001,3842.1,3842.0,12.17369469]
[1753963196316,1e-08,3842.1,3842.0,12.17369469]
[1753963196659,1e-08,3842.1,3842.0,12.92449469]
[1753963197031,1e-08,3842.1,3842.0,8.18869469]
[1753963197365,0.44500001,3842.1,3842.0,12.17369469]
[1753963198880,1e-08,3842.1,3842.0,12.17369469]
[1753963199167,1e-08,3842.1,3842.0,13.05489469]
[1753963199481,0.44500001,3842.1,3842.0,12.30409469]
[1753963200152,0.44500001,3842.1,3842.0,8.31909469]
[1753963200352,0.44500001,3842.1,3842.0,12.30409469]
[1753963200549,1e-08,3842.1,3842.0,13.60489469]
[1753963201074,1e-08,3842.5,3842.4,6.15254007]
[1753963201274,1e-08,3842.5,3842.4,16.25334538]
[1753963201442,1e-08,3842.5,3842.4,17.13454538]
[1753963203040,1e-08,3842.5,3842.4,7.50080038]
[1753963203238,0.46200001,3842.5,3842.4,11.48480038]
[1753963204070,0.46200001,3842.5,3842.4,6.95080038]
[1753963204253,1.22310001,3842.5,3842.4,10.93480038]
[1753963204590,0.46200001,3842.5,3842.4,5.73294007]
[1753963204883,1.97850001,3842.5,3842.4,4.1144]
[1753963205272,0.75540001,3842.5,3842.4,6.58654007]
[1753963205497,1e-08,3842.5,3842.4,7.48324007]
[1753963205712,1e-08,3842.5,3842.4,6.71694007]
[1753963205863,0.46200001,3842.5,3842.4,8.39905268]
[1753963207291,1e-08,3842.5,3842.4,9.16535268]
[1753963207693,1e-08,3842.5,3842.4,9.71535268]
[1753963208603,0.46200001,3842.5,3842.4,8.94905268]
[1753963209609,0.46200001,3842.5,3842.4,13.29799768]
[1753963209807,0.46200001,3842.5,3842.4,14.06429768]
[1753963211477,1e-08,3842.5,3842.4,14.06429768]
[1753963212793,1e-08,3842.5,3842.4,17.06429768]
[1753963212992,1e-08,3842.5,3842.4,17.61429768]
[1753963213192,1e-08,3842.5,3842.4,18.40619768]
[1753963213598,1e-08,3842.5,3842.4,18.62539768]
[1753963213802,1e-08,3842.5,3842.4,18.40619768]
[1753963214024,1e-08,3842.5,3842.4,12.32205268]
[1753963214335,0.46200001,3842.5,3842.4,12.32205268]
[1753963214537,1e-08,3842.5,3842.4,13.08835268]
[1753963216220,1e-08,3842.5,3842.4,11.67105268]
[1753963216456,0.46200001,3842.5,3842.4,11.67105268]
[1753963217311,0.46200001,3842.5,3842.4,12.43735268]
[1753963217514,1e-08,3842.5,3842.4,12.43735268]
[1753963218625,1e-08,3842.5,3842.4,12.98735268]
[1753963219600,1e-08,3842.5,3842.4,13.76465268]
[1753963223897,0.002,3843.0,3842.9,3.15220146]
[1753963224159,0.002,3843.0,3842.9,16.06682845]
[1753963224301,0.7631,3843.0,3842.9,10.61788345]
[1753963224604,1.2251,3843.0,3842.9,10.60528345]
[1753963225009,1.2251,3843.0,3842.9,2.73260146]
[1753963225212,2.0297,3843.0,3842.9,0.1304]
[1753963225411,2.0297,3843.0,3842.9,4.1124]
[1753963225820,2.0297,3843.0,3842.9,0.1304]